bitfinex/quotes_SOLUSD_20250714
["timestamp","ask_amount","ask_price","bid_price","bid_amount"]
[1752496711624,0.06,166.73,166.71,33.42116574]
[1752496711824,0.06,166.73,166.71,39.42116574]
[1752496712337,0.06,166.73,166.71,127.58116574]
[1752496712541,0.06,166.73,166.71,126.75873584]
[1752496712925,0.06,166.73,166.71,132.75873584]
[1752496714029,0.06,166.73,166.71,126.75873584]
[1752496714236,0.06,166.73,166.71,129.78599449]
[1752496714435,0.06,166.73,166.71,124.60842439]
[1752496714943,0.06,166.73,166.71,119.43085429]
[1752496715129,0.06,166.73,166.71,124.60842439]
[1752496715644,0.06,166.73,166.71,129.78599449]
[1752496718150,0.06,166.76,166.74,16.78468397]
[1752496718334,0.06,166.76,166.74,104.82468397]
[1752496718536,0.06,166.76,166.75,5.1775701]
[1752496719428,0.06,166.76,166.75,22.63225407]
[1752496720443,0.06,166.76,166.75,136.67225407]
[1752496721053,0.06,166.76,166.75,142.66925556]
[1752496721425,3.26205055,166.78,166.75,116.66925556]
[1752496721646,3.26205055,166.78,166.77,47.96225407]
[1752496722340,3.26205055,166.78,166.77,48.63225407]
[1752496723038,3.26205055,166.78,166.77,54.62853637]
[1752496723550,0.06,166.81,166.8,101.44263342]
[1752496723738,0.06,166.81,166.8,106.62020352]
[1752496724057,0.06,166.81,166.8,107.29020352]
[1752496725847,0.06,166.81,166.8,106.62020352]
[1752496726055,0.06,166.81,166.8,107.28020352]
[1752496728846,0.06,166.81,166.8,106.62020352]
[1752496729261,0.06,166.81,166.8,107.28020352]
[1752496731549,0.06,166.81,166.8,106.62020352]
[1752496731964,0.06,166.81,166.8,107.28020352]
[1752496733449,0.06,166.81,166.8,144.45297745]
[1752496734960,0.06,166.81,166.8,150.45297745]
[1752496735157,31.36,166.89,166.84,16.78468397]
[1752496735462,0.82,166.89,166.87,5.1775701]
[1752496736675,0.62,166.88,166.87,16.78468397]
[1752496737772,0.2,166.89,166.88,16.78468397]
[1752496737971,0.2,166.89,166.88,106.36020352]
[1752496738405,0.2,166.89,166.88,107.02020352]
[1752496738566,0.2,166.89,166.88,106.36020352]
[1752496739266,0.2,166.89,166.88,101.18263342]
[1752496739467,0.82,166.89,166.88,101.18263342]
[1752496739668,0.2,166.89,166.88,101.18263342]
[1752496740289,0.2,166.89,166.88,106.36020352]
[1752496741088,0.82,166.89,166.88,106.36020352]
[1752496741283,0.2,166.89,166.88,106.36020352]
[1752496741495,0.2,166.89,166.88,101.18263342]
[1752496741795,0.2,166.89,166.88,106.36020352]
[1752496742370,0.2,166.89,166.88,107.02020352]
[1752496742700,0.2,166.89,166.88,106.36020352]
[1752496742894,0.2,166.89,166.88,101.84263342]
[1752496743073,0.2,166.89,166.88,106.36020352]
[1752496743980,0.2,166.89,166.88,107.02020352]
[1752496745586,0.2,166.89,166.88,106.36020352]
[1752496746510,1.5829,166.88,166.84,84.39794945]
[1752496746816,1.5829,166.88,166.85,5.1775701]
[1752496746817,0.62,166.87,166.85,5.1775701]
[1752496746989,0.62,166.87,166.84,84.39794945]
[1752496746990,1.5829,166.88,166.84,84.39794945]
[1752496747296,1.5829,166.88,166.87,16.78468397]
[1752496748006,1.5829,166.88,166.85,21.96225407]
[1752496748204,2.2029,166.88,166.85,21.96225407]
[1752496749075,1.5829,166.88,166.85,21.96225407]
[1752496749369,0.2,166.89,166.87,5.1775701]
[1752496749606,0.2,166.89,166.88,21.96225407]
[1752496749805,0.2,166.89,166.88,106.36020352]
[1752496751467,0.82,166.89,166.88,84.39794945]
[1752496751674,11.98954085,166.89,166.88,84.39794945]
[1752496751872,6.81197075,166.89,166.88,84.39794945]
[1752496752090,11.98954085,166.89,166.88,84.39794945]
[1752496752788,6.81197075,166.89,166.88,84.39794945]
[1752496752993,11.98954085,166.89,166.88,84.39794945]
[1752496753594,6.81197075,166.89,166.88,84.39794945]
[1752496753778,11.98954085,166.89,166.86,16.78468397]
[1752496754095,5.7975701,166.88,166.86,16.78468397]
[1752496754473,0.62,166.88,166.86,16.78468397]
[1752496754674,5.1775701,166.88,166.86,16.78468397]
[1752496755075,11.78996302,166.88,166.86,16.78468397]
[1752496755287,5.1775701,166.87,166.86,16.78468397]
[1752496755492,5.7975701,166.87,166.85,84.39794945]
[1752496755710,5.7975701,166.86,166.85,101.18263342]
[1752496755874,5.7975701,166.86,166.83,84.39794945]
[1752496756074,5.7975701,166.85,166.84,16.78468397]
[1752496756935,0.62,166.85,166.84,16.78468397]
[1752496757104,11.17088325,166.86,166.84,16.78468397]
[1752496757398,5.7975701,166.85,166.84,16.78468397]
[1752496757788,5.99331315,166.86,166.84,16.78468397]
[1752496757789,11.17088325,166.86,166.84,16.78468397]
[1752496757993,11.79088325,166.86,166.84,16.78468397]
[1752496758586,0.62,166.85,166.84,16.78468397]
[1752496758974,11.17088325,166.86,166.84,16.78468397]
[1752496759177,0.62,166.87,166.84,16.78468397]
[1752496759379,5.1775701,166.87,166.84,16.78468397]
[1752496759588,11.7903033,166.87,166.84,101.18263342]
[1752496760793,5.1775701,166.87,166.84,101.18263342]
[1752496760996,5.1775701,166.87,166.84,101.85263342]
[1752496761887,5.1775701,166.88,166.84,101.85263342]
[1752496762094,41.8696665,166.89,166.85,0.67]
[1752496762396,41.8696665,166.89,166.86,0.67]
[1752496762585,41.8696665,166.89,166.84,107.03020352]
[1752496762787,42.4896665,166.89,166.84,106.36020352]
[1752496762985,42.4896665,166.89,166.85,0.67]
[1752496764700,36.6920964,166.89,166.85,0.67]
[1752496764914,35.8775701,166.89,166.86,0.67]
[1752496765586,35.8775701,166.89,166.86,85.06794945]
[1752496766098,35.8775701,166.89,166.86,84.39794945]
[1752496766484,35.8775701,166.89,166.87,22.63225407]
[1752496766485,0.2,166.89,166.87,22.63225407]
[1752496766786,0.2,166.89,166.88,17.45468397]
[1752496768826,0.2,166.89,166.88,16.78468397]
[1752496770512,11.98954085,166.89,166.87,84.39794945]
[1752496770898,5.7975701,166.88,166.87,84.39794945]
[1752496771417,11.36954085,166.89,166.86,16.78468397]
[1752496771618,11.98954085,166.89,166.86,16.78468397]
[1752496772822,0.2,166.89,166.86,17.45468397]
[1752496773320,0.2,166.89,166.86,22.63225407]
[1752496773525,0.2,166.89,166.87,0.67]
[1752496773692,6.19198577,166.89,166.86,21.96225407]
[1752496773893,0.2,166.89,166.87,0.67]
[1752496774103,0.2,166.89,166.88,17.45468397]
[1752496774693,0.2,166.89,166.88,107.03020352]
[1752496780299,0.1,166.98,166.93,16.78468397]
[1752496780598,0.62,166.97,166.95,21.96225407]
[1752496780798,0.62,166.97,166.95,16.78468397]
[1752496782294,0.1,166.98,166.95,16.78468397]
[1752496782517,0.1,166.98,166.95,17.45468397]
[1752496782920,6.08886598,166.98,166.95,16.78468397]
[1752496783111,6.08886598,166.98,166.95,17.45468397]
[1752496783429,6.08886598,166.98,166.97,16.78468397]
[1752496783430,0.1,166.98,166.97,16.78468397]
[1752496783840,6.70874982,166.98,166.93,0.67]
[1752496784023,11.88631992,166.98,166.94,21.96225407]
[1752496784331,0.62,166.97,166.94,16.78468397]
[1752496784502,0.1,166.98,166.96,16.78468397]
[1752496785134,0.1,166.98,166.96,17.43468397]
[1752496787007,6.08876668,166.98,166.96,17.43468397]
[1752496787221,6.08876668,166.98,166.96,16.78468397]
[1752496788024,6.08876668,166.98,166.95,16.78468397]
[1752496788025,6.70876668,166.98,166.95,16.78468397]
[1752496788608,11.88633678,166.98,166.95,16.78468397]
[1752496788808,5.1775701,166.96,166.92,84.19794945]
[1752496789018,5.7975701,166.95,166.92,84.19794945]
[1752496790311,5.99017611,166.94,166.92,84.19794945]
[1752496790911,11.78774621,166.94,166.92,84.19794945]
[1752496791407,36.2775701,166.93,166.9,84.19794945]
[1752496791601,5.1775701,166.91,166.9,84.19794945]
[1752496792000,5.7975701,166.91,166.89,0.03]
[1752496792200,5.7975701,166.9,166.89,0.03]
[1752496792400,6.61161174,166.9,166.89,0.03]
[1752496792616,11.78918184,166.9,166.89,0.03]
[1752496793415,11.16918184,166.9,166.89,0.03]
[1752496794302,11.78918184,166.9,166.89,0.03]
[1752496795116,5.1775701,166.86,166.85,84.19794945]
[1752496795319,36.2775701,166.86,166.83,16.78468397]
[1752496795520,36.2775701,166.86,166.82,84.22794945]
[1752496795521,5.1775701,166.84,166.82,84.22794945]
[1752496795814,35.6575701,166.86,166.82,84.87794945]
[1752496796028,5.1775701,166.85,166.82,84.87794945]
[1752496796222,5.1775701,166.84,166.82,84.22794945]
[1752496796408,11.17146976,166.84,166.82,84.22794945]
[1752496797621,5.1775701,166.83,166.82,84.22794945]
[1752496798728,11.17169585,166.83,166.82,84.22794945]
[1752496799529,5.99412575,166.83,166.82,84.22794945]
[1752496799731,11.17169585,166.83,166.82,84.22794945]
[1752496799930,11.79169585,166.83,166.82,0.03]
[1752496800722,11.79169585,166.83,166.82,1e-08]
[1752496800929,13.36479585,166.83,166.82,1e-08]
[1752496801711,43.86479585,166.83,166.82,1e-08]
[1752496802132,13.36479585,166.83,166.82,1e-08]
[1752496802338,43.86479585,166.83,166.82,1e-08]
[1752496803735,93.99830912,166.83,166.75,0.03]
[1752496803941,6.6960701,166.76,166.75,0.03]
[1752496804119,37.1960701,166.76,166.75,0.03]
[1752496804318,37.8160701,166.76,166.75,0.03]
[1752496804729,5.99700149,166.75,166.69,84.84794945]
[1752496804938,5.1775701,166.74,166.69,84.84794945]
[1752496805149,5.1775701,166.74,166.69,84.19794945]
[1752496805150,5.7975701,166.74,166.69,84.19794945]
[1752496805346,5.7975701,166.74,166.7,0.65]
[1752496805347,5.1775701,166.74,166.7,0.65]
[1752496807321,11.17493126,166.74,166.7,0.65]
[1752496807717,11.17493126,166.74,166.69,84.19794945]
[1752496807718,11.79493126,166.74,166.69,84.19794945]
[1752496808730,11.79493126,166.74,166.65,0.2]
[1752496808932,10.3551402,166.72,166.71,1e-08]
[1752496809246,5.99880023,166.7,166.65,0.2]
[1752496809424,5.1775701,166.66,166.65,0.2]
[1752496809621,35.6975701,166.66,166.65,0.2]
[1752496811024,30.52,166.66,166.65,0.2]
[1752496811227,36.52024,166.66,166.65,0.2]
[1752496811439,41.6978101,166.66,166.65,0.2]
[1752496812045,42.3178101,166.66,166.65,0.2]
[1752496815135,37.14024,166.66,166.65,0.2]
[1752496815342,42.3178101,166.66,166.65,0.2]
[1752496815645,6.61916011,166.69,166.65,0.2]
[1752496815847,5.1775701,166.67,166.65,0.2]
[1752496816162,30.56,166.66,166.65,0.2]
[1752496818044,36.56024,166.66,166.65,0.2]
[1752496819525,42.3578101,166.66,166.65,0.2]
[1752496819726,37.18024,166.66,166.65,0.2]
[1752496819939,42.3578101,166.66,166.65,0.2]
[1752496820159,37.18024,166.66,166.65,0.2]
[1752496820451,42.3578101,166.66,166.65,0.2]
[1752496820951,37.18024,166.66,166.65,0.2]
[1752496821165,30.56,166.66,166.65,0.89]
[1752496821351,30.56,166.66,166.65,0.2]
[1752496821535,41.7378101,166.66,166.65,0.2]
[1752496822560,42.3578101,166.66,166.65,0.2]
[1752496823657,37.18024,166.66,166.65,0.2]
[1752496823846,36.56024,166.66,166.65,0.2]
[1752496824051,41.7378101,166.66,166.65,0.2]
[1752496824367,42.3578101,166.66,166.65,0.2]
[1752496825030,36.56024,166.66,166.65,0.2]
[1752496825236,37.18024,166.66,166.65,0.2]
[1752496825540,42.3578101,166.66,166.65,0.2]
[1752496827059,42.3578101,166.66,166.64,0.03]
[1752496827271,5.7975701,166.65,166.64,0.03]
[1752496827482,41.7378101,166.66,166.64,0.03]
[1752496827759,30.62,166.65,166.64,22.68225407]
[1752496828143,30.62,166.65,166.64,17.50468397]
[1752496828343,30.62,166.65,166.64,22.68225407]
[1752496829061,36.62060006,166.65,166.64,0.03]
[1752496829253,41.79817016,166.65,166.64,0.03]
[1752496829835,37.24060006,166.65,166.64,0.03]
[1752496830036,42.41817016,166.65,166.64,0.03]
[1752496832543,42.41817016,166.65,166.63,0.03]
[1752496832852,5.7975701,166.64,166.63,0.03]
[1752496833055,10.9751402,166.64,166.61,0.03]
[1752496833255,5.1775701,166.62,166.61,0.03]
[1752496833649,0.62,166.62,166.61,0.03]
[1752496833865,36.62132029,166.63,166.61,0.72]
[1752496834084,30.64,166.62,166.61,0.72]
[1752496834254,30.64,166.62,166.61,5.2075701]
[1752496834647,30.64,166.62,166.61,0.03]
[1752496834848,30.64,166.62,166.61,0.72]
[1752496835056,30.64,166.62,166.61,5.8975701]
[1752496836072,36.64168047,166.62,166.61,0.72]
[1752496836251,36.64168047,166.62,166.61,5.8975701]
[1752496836450,30.64,166.62,166.61,0.72]
[1752496836669,30.64,166.62,166.61,5.8975701]
[1752496838579,30.64,166.62,166.61,22.68225407]
[1752496838786,30.62,166.63,166.62,16.78468397]
[1752496838948,30.62,166.63,166.62,21.96225407]
[1752496839144,30.62,166.63,166.62,22.65225407]
[1752496839649,30.62,166.63,166.62,17.47468397]
[1752496839849,30.62,166.63,166.62,22.65225407]
[1752496842688,0.06,166.65,166.62,106.85020352]
[1752496842866,0.06,166.65,166.64,5.1775701]
[1752496843185,0.06,166.65,166.64,111.33777362]
[1752496843390,0.06,166.65,166.64,138.02777362]
[1752496843605,5.99736116,166.74,166.65,18.33478397]
[1752496843769,5.99708407,166.75,166.73,5.1775701]
[1752496843974,30.64,166.74,166.72,5.1775701]
[1752496844394,30.64,166.74,166.72,5.8675701]
[1752496845781,30.64,166.74,166.72,5.1775701]
[1752496845982,5.99772086,166.73,166.72,5.1775701]
[1752496846294,30.64,166.74,166.72,5.1775701]
[1752496846295,36.63747571,166.74,166.72,5.1775701]
[1752496847284,36.63747571,166.74,166.72,5.8475701]
[1752496847674,30.64,166.74,166.73,5.1775701]
[1752496847879,30.64,166.74,166.73,5.8475701]
[1752496848078,36.63736116,166.74,166.73,5.8475701]
[1752496848290,30.64,166.74,166.73,5.8475701]
[1752496848499,5.99675083,166.76,166.73,22.63225407]
[1752496848696,30.62,166.74,166.73,16.78468397]
[1752496848883,30.62,166.74,166.73,21.96225407]
[1752496849299,30.62,166.74,166.73,22.63225407]
[1752496849881,0.06,166.78,166.74,16.78468397]
[1752496850082,0.06,166.78,166.77,5.1775701]
[1752496850287,30.68,166.78,166.77,5.1775701]
[1752496850606,36.67592277,166.78,166.76,5.1775701]
[1752496851305,36.67592277,166.78,166.76,0.67]
[1752496851490,36.67592277,166.78,166.76,5.8475701]
[1752496854493,36.67592277,166.78,166.76,5.1775701]
[1752496855407,36.67592277,166.78,166.77,5.1775701]
[1752496855600,36.67592277,166.78,166.76,5.8475701]
[1752496855903,52.3457297,166.78,166.74,5.8475701]
[1752496856091,5.8575701,166.77,166.73,16.78468397]
[1752496856290,31.28,166.76,166.72,5.8475701]
[1752496856606,31.28,166.76,166.73,5.1775701]
[1752496856817,0.68,166.75,166.71,21.96225407]
[1752496856991,30.62,166.74,166.71,21.96225407]
[1752496857490,30.62,166.74,166.71,22.63225407]
[1752496857705,5.99772086,166.73,166.71,21.96225407]
[1752496857906,30.6,166.72,166.71,106.16020352]
[1752496858294,30.6,166.72,166.69,90.04551955]
[1752496859610,5.9984404,166.71,166.69,90.04551955]
[1752496859812,30.62,166.7,166.69,106.83020352]
[1752496860211,30.62,166.7,166.69,101.65263342]
[1752496860520,30.62,166.7,166.69,106.83020352]
[1752496861092,30.62,166.7,166.69,100.98263342]
[1752496861289,30.62,166.7,166.69,101.65263342]
[1752496861931,41.79637033,166.7,166.69,84.19794945]
[1752496862095,42.47637033,166.7,166.69,84.19794945]
[1752496863321,44.00667033,166.7,166.65,0.03]
[1752496863514,5.1775701,166.66,166.65,0.03]
[1752496863824,36.62024,166.66,166.65,0.03]
[1752496865014,30.62,166.66,166.65,0.03]
[1752496865311,36.62024,166.66,166.65,0.7]
[1752496865502,36.62024,166.66,166.65,0.03]
[1752496866315,36.62024,166.66,166.65,0.7]
[1752496866501,30.62,166.66,166.65,0.7]
[1752496866812,30.62,166.66,166.65,22.66225407]
[1752496867022,5.99942085,166.69,166.66,16.78468397]
[1752496867317,30.6,166.68,166.67,21.96225407]
[1752496867513,30.6,166.68,166.67,22.63225407]
[1752496867718,30.6,166.68,166.66,16.78468397]
[1752496868015,6.67772086,166.73,166.67,0.67]
[1752496868223,35.7975701,166.72,166.67,5.8475701]
[1752496868424,36.4775701,166.72,166.67,5.8475701]
[1752496868602,11.1760105,166.71,166.67,5.8475701]
[1752496868918,30.62,166.7,166.67,5.1775701]
[1752496869119,30.62,166.7,166.68,0.67]
[1752496869727,30.62,166.7,166.68,5.1775701]
[1752496870025,30.62,166.7,166.69,22.63225407]
[1752496871114,30.62,166.7,166.69,17.45468397]
[1752496871319,30.62,166.7,166.69,22.63225407]
[1752496874228,30.62,166.7,166.69,17.45468397]
[1752496874403,30.62,166.7,166.69,22.63225407]
[1752496875617,30.62,166.7,166.69,17.45468397]
[1752496875812,30.62,166.7,166.69,16.78468397]
[1752496876830,36.61880023,166.7,166.69,16.78468397]
[1752496877325,30.62,166.7,166.69,16.78468397]
[1752496877536,30.62,166.7,166.69,22.67225407]
[1752496878033,30.62,166.7,166.69,106.87020352]
[1752496879529,36.61880023,166.7,166.69,101.69263342]
[1752496879718,36.61880023,166.7,166.69,106.87020352]
[1752496880422,36.61880023,166.7,166.69,100.98263342]
[1752496880727,30.62,166.7,166.69,106.87020352]
[1752496880934,30.68,166.7,166.69,106.87020352]
[1752496881633,36.67880023,166.7,166.69,106.16020352]
[1752496882336,30.68,166.7,166.69,106.87020352]
[1752496882832,36.67880023,166.7,166.69,106.16020352]
[1752496883221,36.67880023,166.7,166.69,106.87020352]
[1752496883429,36.67880023,166.7,166.69,106.16020352]
[1752496884425,36.67880023,166.7,166.69,84.19794945]
[1752496886014,42.53637033,166.7,166.65,0.03]
[1752496886216,5.1775701,166.66,166.65,0.03]
[1752496886432,35.7775701,166.66,166.65,0.03]
[1752496886632,36.3575701,166.66,166.65,0.03]
[1752496887438,42.3578101,166.66,166.65,0.03]
[1752496892436,42.3578101,166.66,166.65,1e-08]
[1752496892638,43.9035101,166.66,166.65,1e-08]
[1752496894355,36.60024,166.66,166.65,1e-08]
[1752496895449,41.7778101,166.66,166.65,1e-08]
[1752496895745,36.60024,166.66,166.65,1e-08]
[1752496896249,36.60024,166.66,166.65,0.71000001]
[1752496899056,36.60024,166.66,166.65,1e-08]
[1752496899576,36.60024,166.66,166.65,0.71000001]
[1752496899736,30.6,166.66,166.65,0.71000001]
[1752496899939,36.60024,166.66,166.65,0.71000001]
[1752496900235,36.60024,166.66,166.65,5.88757011]
[1752496900432,30.6,166.66,166.65,75.99489576]
[1752496901125,0.06,166.7,166.66,16.78468397]
[1752496901330,30.62,166.69,166.68,16.78468397]
[1752496901546,30.62,166.69,166.68,22.67225407]
[1752496902142,30.68,166.7,166.69,16.78468397]
[1752496902451,0.06,166.7,166.69,75.99489575]
[1752496902750,0.06,166.7,166.69,22.67225407]
[1752496907575,0.06,166.7,166.69,112.27225407]
[1752496910449,0.06,166.7,166.69,106.38468397]
[1752496911941,0.06,166.7,166.69,112.28225407]
[1752496913456,0.06,166.7,166.69,22.68225407]
[1752496917850,0.06,166.7,166.69,17.50468397]
[1752496918363,0.06,166.7,166.69,22.68225407]
[1752496919452,1.6519,166.7,166.65,89.60000001]
[1752496919657,5.1775701,166.67,166.65,1e-08]
[1752496919860,30.68,166.66,166.65,1e-08]
[1752496920047,30.74,166.66,166.65,1e-08]
[1752496921181,30.74,166.66,166.65,0.72000001]
[1752496921563,36.74024,166.66,166.65,0.72000001]
[1752496921864,0.58,166.69,166.65,0.72000001]
[1752496922176,5.1775701,166.66,166.65,1e-08]
[1752496922471,35.8975701,166.66,166.65,1e-08]
[1752496924066,41.8978101,166.66,166.65,1e-08]
[1752496926664,42.4778101,166.66,166.65,1e-08]
[1752496931554,47.7553802,166.66,166.65,1e-08]
[1752496931772,42.5778101,166.66,166.65,1e-08]
[1752496932862,47.7553802,166.66,166.65,1e-08]
[1752496933064,42.5778101,166.66,166.65,1e-08]
[1752496933773,6.58024,166.66,166.65,1e-08]
[1752496933960,41.9778101,166.66,166.65,1e-08]
[1752496934466,11.17709013,166.68,166.65,0.72000001]
[1752496934672,30.8,166.67,166.66,0.72]
[1752496935392,0.06,166.7,166.66,5.8975701]
[1752496935551,30.84,166.69,166.67,0.7]
[1752496935753,30.84,166.69,166.68,0.7]
[1752496936055,36.83916011,166.69,166.68,0.7]
[1752496937773,42.01673021,166.69,166.65,1e-08]
[1752496937972,42.01673021,166.69,166.66,0.7]
[1752496938374,42.01673021,166.69,166.66,17.48468397]
[1752496938577,36.83916011,166.69,166.66,17.48468397]
[1752496938773,36.83916011,166.69,166.67,0.7]
[1752496941172,42.01673021,166.69,166.66,17.48468397]
[1752496941378,5.1775701,166.68,166.66,16.78468397]
[1752496941579,30.8,166.67,166.66,16.78468397]
[1752496942878,30.8,166.67,166.66,17.48468397]
[1752496943079,36.79988,166.67,166.66,17.48468397]
[1752496944181,36.79988,166.67,166.65,1e-08]
[1752496944366,5.1775701,166.66,166.65,1e-08]
[1752496944970,41.9774501,166.67,166.65,1e-08]
[1752496946188,36.79988,166.67,166.65,1e-08]
[1752496946494,36.79988,166.67,166.65,0.70000001]
[1752496946786,41.9774501,166.67,166.65,0.70000001]
[1752496947580,36.79988,166.67,166.65,1e-08]
[1752496947789,41.9774501,166.67,166.65,1e-08]
[1752496949596,5.7575701,166.66,166.65,1e-08]
[1752496950799,30.76,166.66,166.65,0.70000001]
[1752496951701,36.76024,166.66,166.65,0.70000001]
[1752496952995,0.06,166.69,166.65,5.87757011]
[1752496953168,30.76,166.68,166.66,0.7]
[1752496953371,0.06,166.69,166.67,5.8775701]
[1752496953574,0.06,166.69,166.68,5.8775701]
[1752496953879,30.82,166.69,166.68,11.8655701]
[1752496954096,30.82,166.69,166.68,0.7]
[1752496954280,30.82,166.69,166.68,5.8775701]
[1752496954997,30.82,166.69,166.68,22.66225407]
[1752496955782,30.82,166.69,166.68,17.48468397]
[1752496956200,30.82,166.69,166.68,22.66225407]
[1752496956382,30.82,166.69,166.68,112.26225407]
[1752496958278,30.82,166.69,166.68,106.38468397]
[1752496958497,30.82,166.69,166.68,107.08468397]
[1752496958698,30.82,166.69,166.68,112.26225407]
[1752496962909,0.06,166.69,166.68,112.26225407]
[1752496968709,0.06,166.69,166.68,106.38468397]
[1752496969617,5.8175701,166.69,166.65,1e-08]
[1752496969816,5.1775701,166.66,166.65,1e-08]
[1752496970017,41.8578101,166.66,166.65,1e-08]
[1752496972114,36.68024,166.66,166.65,1e-08]
[1752496972711,41.8578101,166.66,166.65,1e-08]
[1752496976914,42.4378101,166.66,166.65,1e-08]
[1752496978011,43.9794101,166.66,166.65,1e-08]
[1752496978386,49.1569802,166.66,166.65,1e-08]
[1752496978590,43.9794101,166.66,166.65,1e-08]
[1752496980298,49.1569802,166.66,166.65,1e-08]
[1752496980613,38.80184,166.66,166.65,1e-08]
[1752496980913,43.9394101,166.66,166.65,1e-08]
[1752496981818,43.3594101,166.66,166.65,1e-08]
[1752496982319,43.9394101,166.66,166.65,1e-08]
[1752496983213,49.1169802,166.66,166.65,1e-08]
[1752496983419,13.2994101,166.66,166.65,1e-08]
[1752496983797,43.9994101,166.66,166.65,1e-08]
[1752496984421,8.12184,166.66,166.65,1e-08]
[1752496984718,43.9994101,166.66,166.65,1e-08]
[1752496986811,13.2994101,166.66,166.65,1e-08]
[1752496987021,43.9994101,166.66,166.65,1e-08]
[1752496988118,41.8778101,166.66,166.65,1e-08]
[1752496989016,41.8578101,166.66,166.65,1e-08]
[1752496989392,42.4378101,166.66,166.65,1e-08]
[1752496990197,42.4978101,166.66,166.65,1e-08]
[1752496990725,47.6753802,166.66,166.65,1e-08]
[1752496990909,42.4978101,166.66,166.65,1e-08]
[1752496992127,49.1883802,166.66,166.65,1e-08]
[1752496992324,6.5614,166.65,166.61,0.03]
[1752496992527,5.1775701,166.62,166.61,0.03]
[1752496992819,35.8575701,166.62,166.61,0.03]
[1752496992999,5.1775701,166.62,166.61,0.03]
[1752496993199,35.8775701,166.62,166.61,0.03]
[1752496993507,41.87925057,166.62,166.61,0.03]
[1752496994640,41.87925057,166.62,166.61,0.73]
[1752496994641,6.00168047,166.62,166.61,0.73]
[1752496994926,36.68168047,166.62,166.61,0.73]
[1752496995131,30.68,166.62,166.61,0.73]
[1752496995421,36.68168047,166.62,166.61,0.73]
[1752496998304,36.68168047,166.62,166.61,0.03]
[1752496998505,41.85925057,166.62,166.61,0.03]
[1752497000201,15.00161579,166.65,166.61,0.7]
[1752497000408,30.66,166.64,166.61,0.7]
[1752497000710,36.66096015,166.64,166.61,0.03]
[1752497000922,6.00070228,166.65,166.62,5.8475701]
[1752497001122,30.66,166.64,166.63,5.8475701]
[1752497001330,30.66,166.64,166.63,0.67]
[1752497002021,0.06,166.66,166.63,5.8475701]
[1752497002221,30.66,166.65,166.64,0.67]
[1752497003227,30.66,166.65,166.64,22.63225407]
[1752497005025,30.66,166.65,166.64,17.45468397]
[1752497005745,36.66060006,166.65,166.63,5.1775701]
[1752497005947,36.66060006,166.65,166.63,0.67]
[1752497006860,36.66060006,166.65,166.63,5.1775701]
[1752497007019,36.66060006,166.65,166.64,0.67]
[1752497009342,6.06047751,166.66,166.64,5.8475701]
[1752497009547,6.06047751,166.66,166.65,5.8475701]
[1752497009745,36.68047751,166.66,166.65,5.8475701]
[1752497010439,36.68047751,166.66,166.65,0.67]
[1752497010745,36.68047751,166.66,166.65,5.8475701]
[1752497012654,30.68,166.66,166.65,22.63225407]
[1752497012954,30.68,166.66,166.65,17.45468397]
[1752497013143,30.68,166.66,166.65,22.41925407]
[1752497015251,0.06,166.66,166.65,138.01925407]
[1752497015458,0.06,166.66,166.65,144.06425407]
[1752497015640,0.06,166.7,166.69,16.78468397]
[1752497015958,30.7,166.73,166.69,116.73982417]
[1752497016137,30.7,166.73,166.72,21.96225407]
[1752497016344,30.7,166.73,166.72,22.63225407]
[1752497016539,30.7,166.73,166.72,27.80982417]
[1752497016752,0.06,166.73,166.72,27.80982417]
[1752497016947,0.06,166.73,166.72,128.24796909]
[1752497017658,0.06,166.76,166.73,16.78468397]
[1752497017841,0.06,166.76,166.75,31.1775701]
[1752497018358,0.06,166.76,166.75,48.63225407]
[1752497023062,0.06,166.76,166.75,138.23225407]